{"text_format":"1","workbook":"xlsx","n_sheets":1,"sheets":["EVIDENCIJA ZA RABOTA"],"not_rendered":{"charts":0,"images":0,"macros":1,"external_links":0,"defined_names":2,"comments":0,"pivot_tables":0},"unopened":[],"bounds":{"document_bytes":16777216,"sheet_cells":100000,"rows_first":2000,"rows_last":500,"rows_between":2000,"halvings":0,"cell_chars":16384,"cell_head_chars":4096},"cells_cut":0,"cells_raw":0,"read":"whole","date_system":"1900"}

{"sheet":"EVIDENCIJA ZA RABOTA","index":0,"n_rows":304,"n_cols":14,"rows_kept":304,"cut":false,"hidden":false,"merged":[[0,0,2,7],[0,9,1,11]]}
[]
[]
[null,null,null,null,null,null,null,null,null,{"$f":"SUM(J5:J304)","v":15780},{"$f":"SUM(K5:K304)","v":3090},{"$f":"SUM(L5:L304)","v":12690}]
["R.Br.","Ime i Prezime","Adresa","Telefon","Datum na prijava","Datum za realizacijaj","Den.za realiz.","Rabota","Zabele[ka","Za Pla]awe","Plateno","Ne Plateno","DATA","Rabota"]
[1,"Mirko","Bitola","888888","2012-09-27","2012-10-04",{"$f":"IF(F5-M5>=1,F5-M5,\"Pominat rok\")","v":6},"Venecijan","ok",1200,1000,{"$f":"IF(J5-K5>=1,J5-K5,\"Plateno   \")","v":200},{"$f":"TODAY()","v":"2012-09-28"},"PVC"]
[{"$f":"IF(B6=\"\",\"\",A5+1)","v":2},"Nikola","Skopje","444444","2012-09-27","2012-10-06",8,"Alu.Ograda","ok",3400,600,{"$f":"IF(J6-K6>=1,J6-K6,\"Plateno   \")","v":2800},{"$f":"TODAY()","v":"2012-09-28"},"Venecijan"]
[{"$f":"IF(B7=\"\",\"\",A6+1)","v":3},"Petar","Skopje","111111","2012-09-27","2012-01-03","Pominat rok","Enterier","ok",7800,null,7800,"2012-09-28","Variolajt"]
[4,"Bojan","Bitola","999999","2012-09-27","2012-01-03","Pominat rok","PVC","ok",3380,1490,1890,"2012-09-28","Alu.Ograda"]
["",null,null,null,"18.01.2012","2012-01-23",{"$f":"IF(A9=\"\",\"\",IF(F9-M9>=1,F9-M9,\"Pominat rok\"))","v":""},null,"dvokrilen prozor so komarnik i roletna kafeno za grcija",null,null,{"$f":"IF(A9=\"\",\"\",IF(J9-K9>=1,J9-K9,\"Plateno   \"))","v":""},"2012-09-28","Enterier"]
["",null,null,null,"20.01.2012","2012-01-03",{"$f":"IF(A10=\"\",\"\",IF(F10-M10>=1,F10-M10,\"Pominat rok\"))","v":""},null,".",null,null,{"$f":"IF(A10=\"\",\"\",IF(J10-K10>=1,J10-K10,\"Plateno   \"))","v":""},"2012-09-28","Kujna"]
["",null,null,null,"20.01.2012","2012-01-03","",null,".",null,null,"","2012-09-28"]
["",null,null,null,"23.01.2012","2012-01-29","",null,"Komoda za TV so dve polici na zid",null,null,"","2012-09-28"]
["",null,null,null,"24.01.2012","2012-01-03","",null,"prozor 790*1030 bez kip Vais",null,null,"","2012-09-28"]
["",null,null,null,"28.01.2012","2012-02-06","",null,"Edna terasna vrata na tri dela so krilo na sredina ,krajni fiksni + prozor so edno krilo i fiksno",null,null,"","2012-09-28"]
["",null,null,null,"30.01.2012","2012-01-03","",null,"2 prozori vais profil fiksno + krilo",null,null,"","2012-09-28"]
["",null,null,null,"31.01.2012","2012-02-04","",null,"?",null,null,"","2012-09-28"]
["",null,null,null,"12.02.2012","2012-01-03","",null,"vrata so tesen profil i prozor ednokrile veiss",null,null,"","2012-09-28"]
["",null,null,null,"12.02.2012","2012-01-03","",null,"vrata ",null,null,"","2012-09-28"]
["",null,null,null,"12.02.2012","2012-01-03","",null,"vrata",null,null,"","2012-09-28"]
["",null,null,null,"22.02.2012","2012-01-03","",null,"foris",null,null,{"$f":"IF(A12=\"\",\"\",IF(J20-K20>=1,J20-K20,\"Plateno   \"))","v":""},"2012-09-28"]
["",null,null,null,"24.02.2012","2012-01-03","",null,"prozor vais.......              !!!!!1240*1250 dvokrilen vajs 9996 den!!!!!!!!!!!",null,null,"","2012-09-28"]
["",null,null,null,null,null,"",null,null,null,null,"","2012-09-28"]
["",null,null,null,null,null,"",null,null,null,null,"","2012-09-28"]
["",null,null,null,null,null,"",null,null,null,null,"","2012-09-28"]
["",null,null,null,null,null,"",null,null,null,null,"","2012-09-28"]
["",null,null,null,null,null,"",null,null,null,null,"","2012-09-28"]
["",null,null,null,null,null,"",null,null,null,null,"","2012-09-28"]
["",null,null,null,null,null,"",null,null,null,null,"","2012-09-28"]
["",null,null,null,null,null,"",null,null,null,null,"","2012-09-28"]
["",null,null,null,null,null,"",null,null,null,null,"","2012-09-28"]
["",null,null,null,null,null,"",null,null,null,null,"","2012-09-28"]
["",null,null,null,null,null,"",null,null,null,null,"","2012-09-28"]
["",null,null,null,null,null,"",null,null,null,null,"","2012-09-28"]
["",null,null,null,null,null,"",null,null,null,null,"","2012-09-28"]
["",null,null,null,null,null,"",null,null,null,null,"","2012-09-28"]
["",null,null,null,null,null,"",null,null,null,null,"","2012-09-28"]
["",null,null,null,null,null,"",null,null,null,null,"","2012-09-28"]
["",null,null,null,null,null,"",null,null,null,null,"","2012-09-28"]
["",null,null,null,null,null,"",null,null,null,null,"","2012-09-28"]
["",null,null,null,null,null,"",null,null,null,null,"","2012-09-28"]
["",null,null,null,null,null,"",null,null,null,null,"","2012-09-28"]
["",null,null,null,null,null,"",null,null,null,null,"","2012-09-28"]
["",null,null,null,null,null,"",null,null,null,null,"","2012-09-28"]
["",null,null,null,null,null,"",null,null,null,null,"","2012-09-28"]
["",null,null,null,null,null,"",null,null,null,null,"","2012-09-28"]
["",null,null,null,null,null,"",null,null,null,null,"","2012-09-28"]
["",null,null,null,null,null,"",null,null,null,null,"","2012-09-28"]
["",null,null,null,null,null,"",null,null,null,null,"","2012-09-28"]
["",null,null,null,null,null,"",null,null,null,null,"","2012-09-28"]
["",null,null,null,null,null,"",null,null,null,null,"","2012-09-28"]
["",null,null,null,null,null,"",null,null,null,null,"","2012-09-28"]
["",null,null,null,null,null,"",null,null,null,null,"","2012-09-28"]
["",null,null,null,null,null,"",null,null,null,null,"","2012-09-28"]
["",null,null,null,null,null,"",null,null,null,null,"","2012-09-28"]
["",null,null,null,null,null,"",null,null,null,null,"","2012-09-28"]
["",null,null,null,null,null,"",null,null,null,null,"","2012-09-28"]
["",null,null,null,null,null,"",null,null,null,null,"","2012-09-28"]
["",null,null,null,null,null,"",null,null,null,null,"","2012-09-28"]
["",null,null,null,null,null,"",null,null,null,null,"","2012-09-28"]
["",null,null,null,null,null,"",null,null,null,null,"","2012-09-28"]
["",null,null,null,null,null,"",null,null,null,null,"","2012-09-28"]
["",null,null,null,null,null,"",null,null,null,null,"","2012-09-28"]
["",null,null,null,null,null,"",null,null,null,null,"","2012-09-28"]
["",null,null,null,null,null,"",null,null,null,null,"","2012-09-28"]
["",null,null,null,null,null,"",null,null,null,null,"","2012-09-28"]
["",null,null,null,null,null,"",null,null,null,null,"","2012-09-28"]
["",null,null,null,null,null,"",null,null,null,null,"","2012-09-28"]
["",null,null,null,null,null,"",null,null,null,null,"","2012-09-28"]
["",null,null,null,null,null,"",null,null,null,null,"","2012-09-28"]
["",null,null,null,null,null,"",null,null,null,null,"",{"$f":"TODAY()","v":"2012-09-28"}]
[{"$f":"IF(B71=\"\",\"\",A70+1)","v":""},null,null,null,null,null,"",null,null,null,null,"","2012-09-28"]
["",null,null,null,null,null,"",null,null,null,null,"","2012-09-28"]
["",null,null,null,null,null,"",null,null,null,null,"","2012-09-28"]
["",null,null,null,null,null,{"$f":"IF(A74=\"\",\"\",IF(F74-M74>=1,F74-M74,\"Pominat rok\"))","v":""},null,null,null,null,{"$f":"IF(A66=\"\",\"\",IF(J74-K74>=1,J74-K74,\"Plateno   \"))","v":""},"2012-09-28"]
["",null,null,null,null,null,"",null,null,null,null,"","2012-09-28"]
["",null,null,null,null,null,"",null,null,null,null,"","2012-09-28"]
["",null,null,null,null,null,"",null,null,null,null,"","2012-09-28"]
["",null,null,null,null,null,"",null,null,null,null,"","2012-09-28"]
["",null,null,null,null,null,"",null,null,null,null,"","2012-09-28"]
["",null,null,null,null,null,"",null,null,null,null,"","2012-09-28"]
["",null,null,null,null,null,"",null,null,null,null,"","2012-09-28"]
["",null,null,null,null,null,"",null,null,null,null,"","2012-09-28"]
["",null,null,null,null,null,"",null,null,null,null,"","2012-09-28"]
["",null,null,null,null,null,"",null,null,null,null,"","2012-09-28"]
["",null,null,null,null,null,"",null,null,null,null,"","2012-09-28"]
["",null,null,null,null,null,"",null,null,null,null,"","2012-09-28"]
["",null,null,null,null,null,"",null,null,null,null,"","2012-09-28"]
["",null,null,null,null,null,"",null,null,null,null,"","2012-09-28"]
["",null,null,null,null,null,"",null,null,null,null,"","2012-09-28"]
["",null,null,null,null,null,"",null,null,null,null,"","2012-09-28"]
["",null,null,null,null,null,"",null,null,null,null,"","2012-09-28"]
["",null,null,null,null,null,"",null,null,null,null,"","2012-09-28"]
["",null,null,null,null,null,"",null,null,null,null,"","2012-09-28"]
["",null,null,null,null,null,"",null,null,null,null,"","2012-09-28"]
["",null,null,null,null,null,"",null,null,null,null,"","2012-09-28"]
["",null,null,null,null,null,"",null,null,null,null,"","2012-09-28"]
["",null,null,null,null,null,"",null,null,null,null,"","2012-09-28"]
["",null,null,null,null,null,"",null,null,null,null,"","2012-09-28"]
["",null,null,null,null,null,"",null,null,null,null,"","2012-09-28"]
["",null,null,null,null,null,"",null,null,null,null,"","2012-09-28"]
["",null,null,null,null,null,"",null,null,null,null,"","2012-09-28"]
["",null,null,null,null,null,"",null,null,null,null,"","2012-09-28"]
["",null,null,null,null,null,"",null,null,null,null,"","2012-09-28"]
["",null,null,null,null,null,"",null,null,null,null,"","2012-09-28"]
["",null,null,null,null,null,"",null,null,null,null,"","2012-09-28"]
["",null,null,null,null,null,"",null,null,null,null,"","2012-09-28"]
["",null,null,null,null,null,"",null,null,null,null,"","2012-09-28"]
["",null,null,null,null,null,"",null,null,null,null,"","2012-09-28"]
["",null,null,null,null,null,"",null,null,null,null,"","2012-09-28"]
["",null,null,null,null,null,"",null,null,null,null,"","2012-09-28"]
["",null,null,null,null,null,"",null,null,null,null,"","2012-09-28"]
["",null,null,null,null,null,"",null,null,null,null,"","2012-09-28"]
["",null,null,null,null,null,"",null,null,null,null,"","2012-09-28"]
["",null,null,null,null,null,"",null,null,null,null,"","2012-09-28"]
["",null,null,null,null,null,"",null,null,null,null,"","2012-09-28"]
["",null,null,null,null,null,"",null,null,null,null,"","2012-09-28"]
["",null,null,null,null,null,"",null,null,null,null,"","2012-09-28"]
["",null,null,null,null,null,"",null,null,null,null,"","2012-09-28"]
["",null,null,null,null,null,"",null,null,null,null,"","2012-09-28"]
["",null,null,null,null,null,"",null,null,null,null,"","2012-09-28"]
["",null,null,null,null,null,"",null,null,null,null,"","2012-09-28"]
["",null,null,null,null,null,"",null,null,null,null,"","2012-09-28"]
["",null,null,null,null,null,"",null,null,null,null,"","2012-09-28"]
["",null,null,null,null,null,"",null,null,null,null,"","2012-09-28"]
["",null,null,null,null,null,"",null,null,null,null,"","2012-09-28"]
["",null,null,null,null,null,"",null,null,null,null,"","2012-09-28"]
["",null,null,null,null,null,"",null,null,null,null,"","2012-09-28"]
["",null,null,null,null,null,"",null,null,null,null,"","2012-09-28"]
["",null,null,null,null,null,"",null,null,null,null,"","2012-09-28"]
["",null,null,null,null,null,"",null,null,null,null,"","2012-09-28"]
["",null,null,null,null,null,"",null,null,null,null,"","2012-09-28"]
["",null,null,null,null,null,"",null,null,null,null,"","2012-09-28"]
["",null,null,null,null,null,"",null,null,null,null,"","2012-09-28"]
["",null,null,null,null,null,"",null,null,null,null,"",{"$f":"TODAY()","v":"2012-09-28"}]
[{"$f":"IF(B135=\"\",\"\",A134+1)","v":""},null,null,null,null,null,"",null,null,null,null,"","2012-09-28"]
["",null,null,null,null,null,"",null,null,null,null,"","2012-09-28"]
["",null,null,null,null,null,"",null,null,null,null,"","2012-09-28"]
["",null,null,null,null,null,{"$f":"IF(A138=\"\",\"\",IF(F138-M138>=1,F138-M138,\"Pominat rok\"))","v":""},null,null,null,null,{"$f":"IF(A130=\"\",\"\",IF(J138-K138>=1,J138-K138,\"Plateno   \"))","v":""},"2012-09-28"]
["",null,null,null,null,null,"",null,null,null,null,"","2012-09-28"]
["",null,null,null,null,null,"",null,null,null,null,"","2012-09-28"]
["",null,null,null,null,null,"",null,null,null,null,"","2012-09-28"]
["",null,null,null,null,null,"",null,null,null,null,"","2012-09-28"]
["",null,null,null,null,null,"",null,null,null,null,"","2012-09-28"]
["",null,null,null,null,null,"",null,null,null,null,"","2012-09-28"]
["",null,null,null,null,null,"",null,null,null,null,"","2012-09-28"]
["",null,null,null,null,null,"",null,null,null,null,"","2012-09-28"]
["",null,null,null,null,null,"",null,null,null,null,"","2012-09-28"]
["",null,null,null,null,null,"",null,null,null,null,"","2012-09-28"]
["",null,null,null,null,null,"",null,null,null,null,"","2012-09-28"]
["",null,null,null,null,null,"",null,null,null,null,"","2012-09-28"]
["",null,null,null,null,null,"",null,null,null,null,"","2012-09-28"]
["",null,null,null,null,null,"",null,null,null,null,"","2012-09-28"]
["",null,null,null,null,null,"",null,null,null,null,"","2012-09-28"]
["",null,null,null,null,null,"",null,null,null,null,"","2012-09-28"]
["",null,null,null,null,null,"",null,null,null,null,"","2012-09-28"]
["",null,null,null,null,null,"",null,null,null,null,"","2012-09-28"]
["",null,null,null,null,null,"",null,null,null,null,"","2012-09-28"]
["",null,null,null,null,null,"",null,null,null,null,"","2012-09-28"]
["",null,null,null,null,null,"",null,null,null,null,"","2012-09-28"]
["",null,null,null,null,null,"",null,null,null,null,"","2012-09-28"]
["",null,null,null,null,null,"",null,null,null,null,"","2012-09-28"]
["",null,null,null,null,null,"",null,null,null,null,"","2012-09-28"]
["",null,null,null,null,null,"",null,null,null,null,"","2012-09-28"]
["",null,null,null,null,null,"",null,null,null,null,"","2012-09-28"]
["",null,null,null,null,null,"",null,null,null,null,"","2012-09-28"]
["",null,null,null,null,null,"",null,null,null,null,"","2012-09-28"]
["",null,null,null,null,null,"",null,null,null,null,"","2012-09-28"]
["",null,null,null,null,null,"",null,null,null,null,"","2012-09-28"]
["",null,null,null,null,null,"",null,null,null,null,"","2012-09-28"]
["",null,null,null,null,null,"",null,null,null,null,"","2012-09-28"]
["",null,null,null,null,null,"",null,null,null,null,"","2012-09-28"]
["",null,null,null,null,null,"",null,null,null,null,"","2012-09-28"]
["",null,null,null,null,null,"",null,null,null,null,"","2012-09-28"]
["",null,null,null,null,null,"",null,null,null,null,"","2012-09-28"]
["",null,null,null,null,null,"",null,null,null,null,"","2012-09-28"]
["",null,null,null,null,null,"",null,null,null,null,"","2012-09-28"]
["",null,null,null,null,null,"",null,null,null,null,"","2012-09-28"]
["",null,null,null,null,null,"",null,null,null,null,"","2012-09-28"]
["",null,null,null,null,null,"",null,null,null,null,"","2012-09-28"]
["",null,null,null,null,null,"",null,null,null,null,"","2012-09-28"]
["",null,null,null,null,null,"",null,null,null,null,"","2012-09-28"]
["",null,null,null,null,null,"",null,null,null,null,"","2012-09-28"]
["",null,null,null,null,null,"",null,null,null,null,"","2012-09-28"]
["",null,null,null,null,null,"",null,null,null,null,"","2012-09-28"]
["",null,null,null,null,null,"",null,null,null,null,"","2012-09-28"]
["",null,null,null,null,null,"",null,null,null,null,"","2012-09-28"]
["",null,null,null,null,null,"",null,null,null,null,"","2012-09-28"]
["",null,null,null,null,null,"",null,null,null,null,"","2012-09-28"]
["",null,null,null,null,null,"",null,null,null,null,"","2012-09-28"]
["",null,null,null,null,null,"",null,null,null,null,"","2012-09-28"]
["",null,null,null,null,null,"",null,null,null,null,"","2012-09-28"]
["",null,null,null,null,null,"",null,null,null,null,"","2012-09-28"]
["",null,null,null,null,null,"",null,null,null,null,"","2012-09-28"]
["",null,null,null,null,null,"",null,null,null,null,"","2012-09-28"]
["",null,null,null,null,null,"",null,null,null,null,"","2012-09-28"]
["",null,null,null,null,null,"",null,null,null,null,"","2012-09-28"]
["",null,null,null,null,null,"",null,null,null,null,"","2012-09-28"]
["",null,null,null,null,null,"",null,null,null,null,"",{"$f":"TODAY()","v":"2012-09-28"}]
[{"$f":"IF(B199=\"\",\"\",A198+1)","v":""},null,null,null,null,null,"",null,null,null,null,"","2012-09-28"]
["",null,null,null,null,null,"",null,null,null,null,"","2012-09-28"]
["",null,null,null,null,null,"",null,null,null,null,"","2012-09-28"]
["",null,null,null,null,null,{"$f":"IF(A202=\"\",\"\",IF(F202-M202>=1,F202-M202,\"Pominat rok\"))","v":""},null,null,null,null,{"$f":"IF(A194=\"\",\"\",IF(J202-K202>=1,J202-K202,\"Plateno   \"))","v":""},"2012-09-28"]
["",null,null,null,null,null,"",null,null,null,null,"","2012-09-28"]
["",null,null,null,null,null,"",null,null,null,null,"","2012-09-28"]
["",null,null,null,null,null,"",null,null,null,null,"","2012-09-28"]
["",null,null,null,null,null,"",null,null,null,null,"","2012-09-28"]
["",null,null,null,null,null,"",null,null,null,null,"","2012-09-28"]
["",null,null,null,null,null,"",null,null,null,null,"","2012-09-28"]
["",null,null,null,null,null,"",null,null,null,null,"","2012-09-28"]
["",null,null,null,null,null,"",null,null,null,null,"","2012-09-28"]
["",null,null,null,null,null,"",null,null,null,null,"","2012-09-28"]
["",null,null,null,null,null,"",null,null,null,null,"","2012-09-28"]
["",null,null,null,null,null,"",null,null,null,null,"","2012-09-28"]
["",null,null,null,null,null,"",null,null,null,null,"","2012-09-28"]
["",null,null,null,null,null,"",null,null,null,null,"","2012-09-28"]
["",null,null,null,null,null,"",null,null,null,null,"","2012-09-28"]
["",null,null,null,null,null,"",null,null,null,null,"","2012-09-28"]
["",null,null,null,null,null,"",null,null,null,null,"","2012-09-28"]
["",null,null,null,null,null,"",null,null,null,null,"","2012-09-28"]
["",null,null,null,null,null,"",null,null,null,null,"","2012-09-28"]
["",null,null,null,null,null,"",null,null,null,null,"","2012-09-28"]
["",null,null,null,null,null,"",null,null,null,null,"","2012-09-28"]
["",null,null,null,null,null,"",null,null,null,null,"","2012-09-28"]
["",null,null,null,null,null,"",null,null,null,null,"","2012-09-28"]
["",null,null,null,null,null,"",null,null,null,null,"","2012-09-28"]
["",null,null,null,null,null,"",null,null,null,null,"","2012-09-28"]
["",null,null,null,null,null,"",null,null,null,null,"","2012-09-28"]
["",null,null,null,null,null,"",null,null,null,null,"","2012-09-28"]
["",null,null,null,null,null,"",null,null,null,null,"","2012-09-28"]
["",null,null,null,null,null,"",null,null,null,null,"","2012-09-28"]
["",null,null,null,null,null,"",null,null,null,null,"","2012-09-28"]
["",null,null,null,null,null,"",null,null,null,null,"","2012-09-28"]
["",null,null,null,null,null,"",null,null,null,null,"","2012-09-28"]
["",null,null,null,null,null,"",null,null,null,null,"","2012-09-28"]
["",null,null,null,null,null,"",null,null,null,null,"","2012-09-28"]
["",null,null,null,null,null,"",null,null,null,null,"","2012-09-28"]
["",null,null,null,null,null,"",null,null,null,null,"","2012-09-28"]
["",null,null,null,null,null,"",null,null,null,null,"","2012-09-28"]
["",null,null,null,null,null,"",null,null,null,null,"","2012-09-28"]
["",null,null,null,null,null,"",null,null,null,null,"","2012-09-28"]
["",null,null,null,null,null,"",null,null,null,null,"","2012-09-28"]
["",null,null,null,null,null,"",null,null,null,null,"","2012-09-28"]
["",null,null,null,null,null,"",null,null,null,null,"","2012-09-28"]
["",null,null,null,null,null,"",null,null,null,null,"","2012-09-28"]
["",null,null,null,null,null,"",null,null,null,null,"","2012-09-28"]
["",null,null,null,null,null,"",null,null,null,null,"","2012-09-28"]
["",null,null,null,null,null,"",null,null,null,null,"","2012-09-28"]
["",null,null,null,null,null,"",null,null,null,null,"","2012-09-28"]
["",null,null,null,null,null,"",null,null,null,null,"","2012-09-28"]
["",null,null,null,null,null,"",null,null,null,null,"","2012-09-28"]
["",null,null,null,null,null,"",null,null,null,null,"","2012-09-28"]
["",null,null,null,null,null,"",null,null,null,null,"","2012-09-28"]
["",null,null,null,null,null,"",null,null,null,null,"","2012-09-28"]
["",null,null,null,null,null,"",null,null,null,null,"","2012-09-28"]
["",null,null,null,null,null,"",null,null,null,null,"","2012-09-28"]
["",null,null,null,null,null,"",null,null,null,null,"","2012-09-28"]
["",null,null,null,null,null,"",null,null,null,null,"","2012-09-28"]
["",null,null,null,null,null,"",null,null,null,null,"","2012-09-28"]
["",null,null,null,null,null,"",null,null,null,null,"","2012-09-28"]
["",null,null,null,null,null,"",null,null,null,null,"","2012-09-28"]
["",null,null,null,null,null,"",null,null,null,null,"","2012-09-28"]
["",null,null,null,null,null,"",null,null,null,null,"",{"$f":"TODAY()","v":"2012-09-28"}]
[{"$f":"IF(B263=\"\",\"\",A262+1)","v":""},null,null,null,null,null,"",null,null,null,null,"","2012-09-28"]
["",null,null,null,null,null,"",null,null,null,null,"","2012-09-28"]
["",null,null,null,null,null,"",null,null,null,null,"","2012-09-28"]
["",null,null,null,null,null,{"$f":"IF(A266=\"\",\"\",IF(F266-M266>=1,F266-M266,\"Pominat rok\"))","v":""},null,null,null,null,{"$f":"IF(A258=\"\",\"\",IF(J266-K266>=1,J266-K266,\"Plateno   \"))","v":""},"2012-09-28"]
["",null,null,null,null,null,"",null,null,null,null,"","2012-09-28"]
["",null,null,null,null,null,"",null,null,null,null,"","2012-09-28"]
["",null,null,null,null,null,"",null,null,null,null,"","2012-09-28"]
["",null,null,null,null,null,"",null,null,null,null,"","2012-09-28"]
["",null,null,null,null,null,"",null,null,null,null,"","2012-09-28"]
["",null,null,null,null,null,"",null,null,null,null,"","2012-09-28"]
["",null,null,null,null,null,"",null,null,null,null,"","2012-09-28"]
["",null,null,null,null,null,"",null,null,null,null,"","2012-09-28"]
["",null,null,null,null,null,"",null,null,null,null,"","2012-09-28"]
["",null,null,null,null,null,"",null,null,null,null,"","2012-09-28"]
["",null,null,null,null,null,"",null,null,null,null,"","2012-09-28"]
["",null,null,null,null,null,"",null,null,null,null,"","2012-09-28"]
["",null,null,null,null,null,"",null,null,null,null,"","2012-09-28"]
["",null,null,null,null,null,"",null,null,null,null,"","2012-09-28"]
["",null,null,null,null,null,"",null,null,null,null,"","2012-09-28"]
["",null,null,null,null,null,"",null,null,null,null,"","2012-09-28"]
["",null,null,null,null,null,"",null,null,null,null,"","2012-09-28"]
["",null,null,null,null,null,"",null,null,null,null,"","2012-09-28"]
["",null,null,null,null,null,"",null,null,null,null,"","2012-09-28"]
["",null,null,null,null,null,"",null,null,null,null,"","2012-09-28"]
["",null,null,null,null,null,"",null,null,null,null,"","2012-09-28"]
["",null,null,null,null,null,"",null,null,null,null,"","2012-09-28"]
["",null,null,null,null,null,"",null,null,null,null,"","2012-09-28"]
["",null,null,null,null,null,"",null,null,null,null,"","2012-09-28"]
["",null,null,null,null,null,"",null,null,null,null,"","2012-09-28"]
["",null,null,null,null,null,"",null,null,null,null,"","2012-09-28"]
["",null,null,null,null,null,"",null,null,null,null,"","2012-09-28"]
["",null,null,null,null,null,"",null,null,null,null,"","2012-09-28"]
["",null,null,null,null,null,"",null,null,null,null,"","2012-09-28"]
["",null,null,null,null,null,"",null,null,null,null,"","2012-09-28"]
["",null,null,null,null,null,"",null,null,null,null,"","2012-09-28"]
["",null,null,null,null,null,"",null,null,null,null,"","2012-09-28"]
["",null,null,null,null,null,"",null,null,null,null,"","2012-09-28"]
["",null,null,null,null,null,"",null,null,null,null,"","2012-09-28"]
["",null,null,null,null,null,"",null,null,null,null,"","2012-09-28"]
["",null,null,null,null,null,"",null,null,null,null,"","2012-09-28"]
["",null,null,null,null,null,"",null,null,null,null,"","2012-09-28"]
["",null,null,null,null,null,"",null,null,null,null,"","2012-09-28"]